[Event "SVK ECo-C Extraliga 2021-22"]
[Site "Slovakia"]
[Date "2022.05.08"]
[Round "7.7"]
[White "Maslik, Miroslav"]
[Black "Blaho, Stefan"]
[Result "1/2-1/2"]
[ECO "D94"]
[WhiteElo "2370"]
[BlackElo "2011"]
[Annotator "TA"]
[PlyCount "38"]
[EventDate "2021.10.21"]
[EventType "team-tourn"]
[EventCountry "SVK"]
[SourceTitle "playchess.com"]
[Source "ChessBase"]
[SourceQuality "1"]
[TimeControl "40/5400+30:1800+30"]

{[%evp 12,38,21,19,44,50,37,39,62,58,66,11,7,0,0,0,11,14,23,34,24,20,28,24,57,-32,-32,-61,-58]} 1. Nf3 {[%emt 0:01:16]} d5 {[%emt 0:00:14]} 2. c4 {[%emt 0:00:11]} c6 {[%emt 0:08:57]} 3. e3 {[%emt 0:00:24]} Nf6 {[%emt 0:02:18]} 4. Nc3 {[%emt 0:00:14]} g6 {[%emt 0:10:45]} 5. d4 {[%emt 0:04:24]} Bg7 {[%emt 0:00:09]} 6. Bd3 {[%emt 0:01:53]} O-O {[%emt 0:00:14]} 7. O-O {[%emt 0:00:28]} Na6 {[%emt 0:06:24] D94: Grünfeld: 4 Nf3 Bg7 5 e3.} 8. cxd5 {[%emt 0:07:57]} cxd5 {[%emt 0:00:03]} 9. Qb3 {[%emt 0:01:12] Inhibits Nb4.} Nc7 {[%emt 0:08:03] White is slightly better.} 10. Bd2 {[%emt 0:05:41] [#]} b6 $146 {[%emt 0:27:48]} ({Predecessor:} 10... Rb8 11. Ne5 Bf5 12. Be2 Nd7 13. Nd3 e5 14. dxe5 Bxd3 15. Bxd3 Nc5 16. Qc2 Nxd3 17. Qxd3 Bxe5 {½-½ (48) Hrbolka,L (2205)-Pokorny,P (2215) Czech Republic 2001}) 11. Ne5 {[%emt 0:11:23] White is more active.} (11. a4 $14) 11... Bb7 $11 {[%emt 0:00:19]} 12. a4 {[%emt 0:00:35][%cal Ba2a4,Ba4a5][%mdl 32]} Ne4 {[%emt 0:03:57]} 13. Rfd1 {[%emt 0:02:34][%cal Bf1d1,Bd1d2,Bd2c2][%mdl 32]} Nxd2 {[%emt 0:02:50]} (13... Bxe5 $5 14. dxe5 Nc5 $11) 14. Rxd2 {[%emt 0:00:31]} f6 {[%emt 0:02:01]} 15. Nf3 {[%emt 0:01:58]} e6 {[%emt 0:00:12]} 16. Rc2 {[%emt 0:07:21]} Rf7 {[%emt 0:00:28]} 17. a5 {[%emt 0:06:42]} Bf8 {[%emt 0:16:40]} 18. Rac1 {[%emt 0:10:03]} (18. axb6 $14 axb6 19. Rxa8 Nxa8 20. e4) 18... Na6 $15 {[%emt 0:00:35]} 19. Bxa6 {[%emt 0:13:09]} Bxa6 {[%emt 0:01:14] Weighted Error Value: White=0.22 (precise) /Black=0.10 (very precise)} 1/2-1/2

[Event "SVK ECo-C Extraliga 2021-22"]
[Site "Slovakia"]
[Date "2022.05.07"]
[Round "7.7"]
[White "Vojtek, Vladimir"]
[Black "Macko, Michal"]
[Result "1-0"]
[ECO "B40"]
[WhiteElo "2287"]
[BlackElo "2161"]
[Annotator "TA"]
[PlyCount "97"]
[EventDate "2021.10.21"]
[EventType "team-tourn"]
[EventCountry "SVK"]
[SourceTitle "playchess.com"]
[Source "ChessBase"]
[SourceQuality "1"]
[TimeControl "40/5400+30:1800+30"]

{[%evp 12,97,6,15,28,-34,-37,-46,-22,-22,-26,-30,-18,-108,-95,-106,-71,-113,-102,-124,-24,-37,-32,-20,-12,-27,123,108,307,280,295,298,289,277,281,208,209,209,221,218,214,191,207,197,245,245,266,246,247,252,242,233,235,125,126,0,74,0,35,44,44,27,52,43,55,58,66,61,123,94,260,250,330,326,287,223,421,395,395,424,386,382,924,728,4516,4133,5081,2826]} 1. e4 {[%emt 0:00:08]} c5 {[%emt 0:00:13]} 2. Nf3 {[%emt 0:00:13]} e6 {[%emt 0:00:06]} 3. b3 {[%emt 0:02:38]} b6 {[%emt 0:00:10]} 4. Bb2 {[%emt 0:01:12]} Bb7 {[%emt 0:00:09]} 5. Nc3 Nc6 {[%emt 0:04:36]} 6. d4 {[%emt 0:07:49]} cxd4 {[%emt 0:00:57]} 7. Nxd4 {[%emt 0:00:09]} a6 {[%emt 0:08:28] [#] B40: Sicilian: 2...e6, Unusual lines.} 8. Nde2 $146 {[%emt 0:05:41]} (8. Nxc6 $11 Bxc6 9. Qd2) ({Predecessor:} 8. Nxc6 Bxc6 9. Qd3 Qc7 10. Qg3 Qxg3 11. hxg3 b5 12. f3 f6 13. a4 b4 14. Ne2 Bc5 15. Nf4 {1-0 (29) Navara,D (2693)-Dreev,A (2623) Chess.com INT 2022}) 8... Nf6 $15 {[%emt 0:02:03]} 9. Qd2 {[%emt 0:00:47]} Bc5 {[%emt 0:05:02][%cal Bf8c5,Bc5f2,Bf2d4][%mdl 32] Black is slightly better.} 10. f3 {[%emt 0:01:12]} O-O {[%emt 0:04:54]} 11. O-O-O $1 {[%emt 0:02:22]} b5 {[%emt 0:01:12] Inhibits Na4.} 12. Nf4 {[%emt 0:12:56]} (12. Kb1 $11) 12... Qb6 $17 {[%emt 0:02:04]} 13. Re1 {[%emt 0:00:13] Against Be3} Bf2 {[%emt 0:16:12]} 14. Re2 {[%emt 0:03:26]} Bd4 {[%emt 0:00:07]} 15. g4 {[%emt 0:12:31] [#]} Qc5 {[%emt 0:11:59]} (15... Rfc8 $1 $17 {aiming for ...Nb4.} 16. Kb1 a5) 16. Kb1 $11 {[%emt 0:11:24]} Rfc8 {[%emt 0:03:41]} 17. Bg2 {[%emt 0:05:32]} Nb4 {[%emt 0:13:23][%cal Rd4c3]} 18. Na4 {[%emt 0:18:01]} bxa4 {[%emt 0:03:28]} ({Black should try} 18... Qxc2+ $1 $11 19. Qxc2 Rxc2) 19. Bxd4 $16 {[%emt 0:01:53] Chess con chili.} Qe7 {[%emt 0:08:59]} (19... Qf8 $16 {keeps fighting.}) 20. Bxf6 $18 {[%emt 0:02:26]} gxf6 {[%emt 0:00:45]} 21. Nh5 {[%emt 0:00:19][%cal Bf4h5,Bh5f6,Bf6d7,Bd7c5][%mdl 32] [#] Qh6 would kill now.} Kh8 {[%emt 0:04:56]} 22. Qh6 {[%emt 0:02:08][%csl Gh5][%cal Rh6g7]} Rg8 {[%emt 0:00:20] Against Qg7+} 23. Qxf6+ {[%emt 0:02:33]} Qxf6 {[%emt 0:00:13]} 24. Nxf6 {[%emt 0:00:01]} Rgd8 {[%emt 0:00:08]} 25. Rd1 {[%emt 0:01:27]} (25. bxa4 $6 d5 $16) 25... axb3 {[%emt 0:02:08]} 26. cxb3 {[%emt 0:00:25]} Kg7 {[%emt 0:01:04]} 27. g5 {[%emt 0:01:32]} ({Don't take} 27. Nxd7 Nd5 28. exd5 Rxd7) ({Resist} 27. Rxd7 $6 Kxf6 28. Rxb7 Nd3 $16) 27... Nc6 {[%emt 0:01:27]} (27... h6 $142 28. f4 (28. Rxd7 Rxd7 29. Nxd7 hxg5 $16) 28... hxg5) 28. Red2 {[%emt 0:01:16]} Ne5 {[%emt 0:00:46][%cal Bc6e5,Be5g6,Bg6f4][%mdl 32]} 29. Nxd7 {[%emt 0:00:32]} Ng6 {[%emt 0:00:29]} 30. Nc5 {[%emt 0:00:30]} Rxd2 {[%emt 0:00:17]} 31. Rxd2 {[%emt 0:00:02]} Bc6 {[%emt 0:00:16]} 32. Rd6 {[%emt 0:00:49]} (32. Bf1 $18) 32... Bb5 $16 {[%emt 0:01:04]} 33. Rd2 {[%emt 0:03:21]} (33. Rd1 $16) 33... Nf4 {[%emt 0:00:57]} (33... Bc6 $11) 34. Na4 {[%emt 0:01:10]} (34. Nb7 $16) 34... Bxa4 {[%emt 0:00:35]} 35. bxa4 $11 {[%emt 0:00:01][%mdl 4096] Endgame KRB-KRN} Rb8+ $1 {[%emt 0:00:08]} 36. Ka1 {[%emt 0:00:31]} Rb4 {[%emt 0:00:06]} 37. Bf1 {[%emt 0:00:16] Threatens to win with a3.} Rxa4 {[%emt 0:00:07]} 38. Kb2 {[%emt 0:00:24] And now Kb3 would win.} Rb4+ {[%emt 0:00:47]} 39. Kc3 {[%emt 0:00:24]} Rb6 {[%emt 0:01:33]} ({Better is} 39... a5 $14) 40. Rd7 {[%emt 0:00:53]} e5 $2 {[%emt 0:02:51]} (40... Ng6 $16 {might work better.}) 41. Bc4 $18 {[%emt 0:30:48] Black must now prevent h4.} Ne6 {[%emt 0:31:19]} 42. h4 {[%emt 0:00:00]} (42. Bxe6 Rxe6 43. Kc4 h6 $18) 42... Kg6 {[%emt 0:00:00]} 43. Bd5 {[%emt 0:00:00] Prevents Rc6+.} f6 $2 {[%emt 0:00:00]} (43... a5 44. Ra7 a4) 44. gxf6 {[%emt 0:00:00]} Kxf6 {[%emt 0:00:00]} 45. Rxh7 {[%emt 0:00:00] Strongly threatening Rh6+.} Kg6 {[%emt 0:00:00] Inhibits Rh6+.} 46. Rb7 {[%emt 0:00:00]} Rxb7 {[%emt 0:00:00]} (46... Rd6 47. Bxe6 Rxe6) 47. Bxb7 {[%emt 0:00:00] White is clearly winning.} Nd4 {[%emt 0:00:00]} 48. Bxa6 {[%emt 0:00:00]} Nxf3 {[%emt 0:00:00]} 49. Be2 {[%emt 0:00:00] Weighted Error Value: White=0.21 (precise) /Black=0.35} 1-0

[Event "SVK ECo-C Extraliga 2021-22"]
[Site "Slovakia"]
[Date "2022.05.07"]
[Round "7.7"]
[White "Petran, Peter"]
[Black "Kravec, Patrik"]
[Result "1/2-1/2"]
[ECO "A10"]
[WhiteElo "2240"]
[BlackElo "2140"]
[Annotator "TA"]
[PlyCount "74"]
[EventDate "2021.10.21"]
[EventType "team-tourn"]
[EventCountry "SVK"]
[SourceTitle "playchess.com"]
[Source "ChessBase"]
[SourceQuality "1"]
[TimeControl "40/5400+30:1800+30"]

{[%evp 9,74,30,65,74,72,69,80,80,89,70,82,62,64,62,70,54,50,73,119,102,123,133,109,54,53,42,56,62,58,54,57,-24,-20,-18,0,0,3,0,0,0,0,0,69,11,67,37,20,0,0,-1,-1,-46,-19,-18,-26,-29,-17,-17,-18,-29,0,0,0,-10,-10,-10,0]} 1. c4 {[%emt 0:00:31]} g6 {[%emt 0:04:09]} 2. Nc3 {[%emt 0:00:14]} c5 {[%emt 0:02:48]} 3. e3 {[%emt 0:01:38][%cal Be2e3,Be3e4][%mdl 32]} Bg7 {[%emt 0:01:17]} 4. d4 {[%emt 0:00:11]} b6 {[%emt 0:06:35]} 5. Nf3 {[%emt 0:00:22]} Bb7 {[%emt 0:04:33]} 6. d5 {[%emt 0:01:42] A34: Symmetrical English: 2 Nc3, lines with ...d5.} d6 {[%emt 0:03:10]} 7. e4 {[%emt 0:00:25]} Nd7 {[%emt 0:04:44]} 8. Bf4 {[%emt 0:01:53] White is better.} Ngf6 {[%emt 0:01:38]} 9. Bd3 {[%emt 0:03:12] [#]} Ng4 $146 {[%emt 0:01:23]} ({Predecessor:} 9... O-O 10. Qd2 a6 11. O-O Ng4 12. Qc2 Qc7 13. Be2 Rfc8 14. h3 Nge5 15. Nd2 b5 16. cxb5 {0-1 (36) Walter,M (1992)-Bachmayer,J (2088) Austria 2004}) 10. O-O {[%emt 0:02:39]} Nge5 {[%emt 0:00:55]} 11. Nxe5 {[%emt 0:02:23]} Nxe5 {[%emt 0:02:04]} 12. Be2 {[%emt 0:04:06]} O-O {[%emt 0:00:59]} 13. Qd2 {[%emt 0:00:27]} Re8 {[%emt 0:11:31]} (13... e6 $142) 14. Bh6 $16 {[%emt 0:04:45]} Bh8 {[%emt 0:00:59]} 15. f4 {[%emt 0:04:44]} Nd7 {[%emt 0:00:14]} 16. Bd1 {[%emt 0:00:27] White is more active.} ({White should try} 16. e5 $16) 16... a6 {[%emt 0:04:28]} 17. Ba4 {[%emt 0:01:23]} b5 {[%emt 0:01:30]} 18. cxb5 {[%emt 0:00:54]} axb5 {[%emt 0:06:50]} 19. Bxb5 {[%emt 0:00:15]} Ba6 {[%emt 0:00:16]} 20. Bxd7 {[%emt 0:06:13]} (20. a4 $14) 20... Qxd7 {[%emt 0:00:36]} 21. Rf3 {[%emt 0:00:08]} Reb8 {[%emt 0:08:06][%mdl 1024] Black has compensation.} 22. f5 {[%emt 0:03:43]} Rb4 {[%emt 0:06:12]} 23. Re1 {[%emt 0:20:23]} Rab8 {[%emt 0:02:56]} 24. Nd1 {[%emt 0:01:54]} Rd4 {[%emt 0:05:07]} 25. Qf2 {[%emt 0:01:25] [#] Threatens to win with fxg6.} Qe8 {[%emt 0:05:59]} (25... Rd3 $11) 26. Bd2 {[%emt 0:09:05]} ({Better is} 26. fxg6 $14 hxg6 27. Bd2) 26... Rd3 {[%emt 0:06:22]} ({Black should play} 26... Bd3 $1 $11) 27. Bc3 {[%emt 0:03:15]} Bxc3 {[%emt 0:04:05]} 28. bxc3 {[%emt 0:00:52]} Rxf3 {[%emt 0:00:47]} 29. Qxf3 {[%emt 0:00:36]} Rb1 {[%emt 0:00:46] aiming for ...Qa4.} 30. Qe3 {[%emt 0:07:59]} Qa4 {[%emt 0:00:55]} 31. fxg6 {[%emt 0:02:11]} hxg6 {[%emt 0:03:02]} (31... Rxd1 $2 32. gxf7+ Kxf7 33. Qf3+ Ke8 34. Qxd1 $18) 32. Nf2 {[%emt 0:02:42]} Qxa2 {[%emt 0:00:41]} 33. h4 {[%emt 0:00:26]} Rxe1+ {[%emt 0:00:40]} 34. Qxe1 {[%emt 0:00:03]} Qe2 {[%emt 0:00:19]} 35. Qxe2 {[%emt 0:01:11] The position is equal.} Bxe2 {[%emt 0:00:20]} 36. Kh2 {[%emt 0:01:15]} Kg7 {[%emt 0:00:39] [#] Hoping for ...Kf6.} 37. Kg3 {[%emt 0:00:04]} Bf1 {[%emt 0:00:42] Weighted Error Value: White=0.14 (very precise) /Black=0.14 (very precise)} 1/2-1/2

[Event "SVK ECo-C Extraliga 2021-22"]
[Site "Slovakia"]
[Date "2022.05.07"]
[Round "7.7"]
[White "Gasa, Andrej"]
[Black "Bojtos, Patrik"]
[Result "1/2-1/2"]
[ECO "B38"]
[WhiteElo "2153"]
[BlackElo "1986"]
[Annotator "TA"]
[PlyCount "81"]
[EventDate "2021.10.21"]
[EventType "team-tourn"]
[EventCountry "SVK"]
[SourceTitle "playchess.com"]
[Source "ChessBase"]
[SourceQuality "1"]
[TimeControl "40/5400+30:1800+30"]

{[%evp 26,81,46,45,41,45,36,28,30,30,29,28,31,29,29,28,29,16,31,29,36,28,35,22,37,33,33,35,33,74,70,33,33,33,33,29,29,29,29,29,29,29,31,31,31,29,31,29,31,0,31,29,31,29,31,29,71,0]} 1. e4 {[%emt 0:00:03]} c5 {[%emt 0:00:18]} 2. Nf3 {[%emt 0:00:07]} g6 {[%emt 0:00:22]} 3. d4 {[%emt 0:01:03]} cxd4 {[%emt 0:00:08]} 4. Nxd4 {[%emt 0:00:02]} Bg7 {[%emt 0:00:10]} 5. c4 {[%emt 0:02:17]} Nc6 {[%emt 0:00:06]} 6. Be3 {[%emt 0:01:04]} Nf6 {[%emt 0:00:24]} 7. Nc3 {[%emt 0:00:07]} d6 {[%emt 0:00:53]} 8. Be2 {[%emt 0:00:17]} O-O {[%emt 0:00:09]} 9. O-O {[%emt 0:00:13]} Nxd4 {[%emt 0:00:15]} 10. Bxd4 {[%emt 0:00:10]} Bd7 {[%emt 0:00:07]} 11. Be3 {[%emt 0:13:46]} Bc6 {[%emt 0:00:09]} 12. f3 {[%emt 0:00:05]} Nd7 {[%emt 0:00:15]} 13. Qd2 {[%emt 0:00:08]} a5 {[%emt 0:00:12]} 14. Rab1 {[%emt 0:03:42]} a4 {[%emt 0:00:52] B38: Sicilian: Maroczy Bind with 5...Bg7 and 7...0-0.} 15. Rfc1 {[%emt 0:01:27]} Qa5 {[%emt 0:05:46]} 16. b4 {[%emt 0:28:34]} axb3 $1 {[%emt 0:00:33] White has an edge.} 17. axb3 {[%emt 0:00:05] Strongly threatening b4.} Bxc3 {[%emt 0:13:48] [#]} 18. Rxc3 $146 {[%emt 0:02:12] [#] aiming for b4.} ({Predecessor:} 18. Qxc3 Qxc3 19. Rxc3 Ra2 20. Bf1 Rfa8 21. b4 b6 22. Rcb3 Kf8 23. R3b2 e5 24. g3 {1-0 (69) Mueller,R (2414)-Berberich,C (2085) Wiesbaden 2012}) 18... Qb4 {[%emt 0:00:24]} 19. Rc2 {[%emt 0:07:31]} Qxd2 {[%emt 0:01:22]} 20. Bxd2 {[%emt 0:00:06]} Rfb8 {[%emt 0:05:09]} 21. Kf2 {[%emt 0:01:59]} Kf8 {[%emt 0:11:41]} 22. b4 {[%emt 0:03:09][%cal Bb3b4,Bb4b5][%mdl 32] [#] And now b5 would win.} b6 {[%emt 0:12:01]} 23. Be3 {[%emt 0:03:52]} Ra3 {[%emt 0:06:00]} 24. Rbb2 {[%emt 0:05:54]} Ne5 {[%emt 0:18:33]} 25. b5 {[%emt 0:01:54]} Bb7 {[%emt 0:08:33]} 26. Ra2 {[%emt 0:02:53]} Rxa2 {[%emt 0:00:53]} 27. Rxa2 {[%emt 0:00:01]} Nd7 {[%emt 0:00:34]} 28. h4 {[%emt 0:01:31] White is more active.} Ra8 {[%emt 0:01:40]} 29. Rxa8+ {[%emt 0:00:16]} Bxa8 $14 {[%emt 0:00:01][%mdl 4096] Endgame KBB-KBN} 30. Bd4 {[%emt 0:00:44]} e5 {[%emt 0:03:38]} 31. Be3 {[%emt 0:02:15]} Kg7 {[%emt 0:02:23]} 32. g3 {[%emt 0:00:17]} Bb7 {[%emt 0:01:37]} 33. Bf1 {[%emt 0:00:15]} h6 {[%emt 0:00:51]} 34. Bh3 {[%emt 0:00:24]} Nc5 {[%emt 0:00:02]} 35. Ke2 {[%emt 0:00:55]} f6 {[%emt 0:01:06]} 36. Kf2 {[%emt 0:03:23]} Nd3+ {[%emt 0:00:25]} 37. Ke2 {[%emt 0:00:34]} Nc5 {[%emt 0:00:02]} 38. Bf2 {[%emt 0:03:29]} Na4 {[%emt 0:02:04]} 39. Bg1 {[%emt 0:01:59]} Nc5 {[%emt 0:02:44]} 40. Be3 {[%emt 0:01:02]} Kh7 {[%emt 0:01:09]} 41. Bg1 {[%emt 0:36:05] Weighted Error Value: White=0.06 (flawless) /Black=0.03 (flawless)} (41. h5 $16) 1/2-1/2

[Event "SVK ECo-C Extraliga 2021-22"]
[Site "Slovakia"]
[Date "2022.05.07"]
[Round "7.7"]
[White "Brhel, Jan"]
[Black "Jacko, Vladimir"]
[Result "0-1"]
[ECO "A47"]
[WhiteElo "2027"]
[BlackElo "2379"]
[Annotator "TA"]
[PlyCount "78"]
[EventDate "2021.10.21"]
[EventType "team-tourn"]
[EventCountry "SVK"]
[SourceTitle "playchess.com"]
[Source "ChessBase"]
[SourceQuality "1"]
[TimeControl "40/5400+30:1800+30"]

{[%evp 9,78,18,20,18,23,4,39,37,41,41,45,26,28,34,27,30,35,7,12,12,2,0,0,0,0,-6,-3,0,-4,-12,0,-3,-18,-54,-40,-78,-20,-41,-14,-78,-79,-73,-72,-101,-41,-63,-63,-114,-107,-144,-73,-396,-421,-406,-406,-645,-635,-600,-420,-429,-370,-367,-362,-740,-541,-513,-497,-951,-951,-857,-515]} 1. d4 {[%emt 0:00:07]} b6 {[%emt 0:05:30]} 2. Nf3 {[%emt 0:04:02]} Nf6 {[%emt 0:01:40]} 3. e3 {[%emt 0:01:46]} Bb7 {[%emt 0:00:37]} 4. c4 {[%emt 0:00:51]} g6 {[%emt 0:01:46]} 5. Nc3 {[%emt 0:00:11]} Bg7 {[%emt 0:00:05]} 6. Be2 {[%emt 0:02:15] A47: 1 d4 Nf6 2 Nf3 b6: Torre, London and Colle Systems.} O-O {[%emt 0:00:41]} 7. Qc2 {[%emt 0:02:02]} d6 {[%emt 0:09:42][%cal Oe7e5]} 8. O-O {[%emt 0:02:31] White is slightly better.} Nbd7 {[%emt 0:00:49]} 9. Rd1 {[%emt 0:01:44]} c6 {[%emt 0:02:15]} 10. b3 {[%emt 0:02:41]} Qc7 {[%emt 0:01:04]} 11. Bb2 {[%emt 0:04:48] [#]} a6 $146 {[%emt 0:01:54]} ({Predecessor:} 11... c5 12. d5 a6 13. Qd2 Rad8 14. Rac1 Nb8 15. e4 e5 16. h3 Nh5 17. g3 Bc8 {0-1 (27) Remete,Z (1651)-L'Ami,A (2089) Tapolca 1999}) 12. Rac1 {[%emt 0:02:40]} Rfe8 {[%emt 0:02:21]} 13. Ba3 {[%emt 0:10:01]} e6 {[%emt 0:05:47]} 14. Nd2 {[%emt 0:16:19]} c5 {[%emt 0:05:19]} 15. Bf3 {[%emt 0:05:51]} cxd4 {[%emt 0:10:52]} 16. exd4 {[%emt 0:00:53]} Bxf3 {[%emt 0:01:17]} 17. Nxf3 {[%emt 0:00:16]} Bh6 {[%emt 0:00:19]} 18. Nd2 {[%emt 0:12:54]} Qb8 {[%emt 0:13:26]} 19. Nce4 {[%emt 0:06:04]} d5 {[%emt 0:02:17]} 20. Bd6 {[%emt 0:02:28]} Qb7 {[%emt 0:03:02][%cal Rf6e4]} 21. Ng3 {[%emt 0:03:30]} Rac8 {[%emt 0:02:36]} 22. Qd3 {[%emt 0:00:47]} Rc6 {[%emt 0:04:52]} (22... dxc4 $17 23. bxc4 e5 24. Bxe5 Nxe5 25. dxe5 Rxe5) 23. Ba3 $11 {[%emt 0:06:45]} Rec8 {[%emt 0:02:33]} (23... b5 {feels hotter.} 24. h3 bxc4 25. bxc4 Bxd2 26. Rxd2 dxc4 27. Rxc4 Rxc4 28. Qxc4 Rc8) 24. cxd5 {[%emt 0:01:59]} (24. Ngf1 $1 $11) 24... Nxd5 $17 {[%emt 0:05:58]} 25. Rxc6 {[%emt 0:00:53]} Rxc6 {[%emt 0:00:30]} 26. Ne2 {[%emt 0:00:43]} a5 {[%emt 0:05:19]} (26... Qc7 $17 27. g3 (27. Qxa6 Rc2 $17) 27... Bxd2 28. Rxd2 b5) 27. Nc4 {[%emt 0:00:50]} Qc7 {[%emt 0:00:19]} 28. g3 {[%emt 0:03:47] [#]} (28. Bb2 $15) 28... b5 $1 {[%emt 0:03:07]} 29. Ne3 {[%emt 0:00:08] [#]} b4 {[%emt 0:00:18] Black is more active.} ({Black should play} 29... Nxe3 $1 30. fxe3 b4) 30. Nxd5 $4 {[%emt 0:00:21][%mdl 8192] White does not recover from this.} (30. Bc1 $17 {is more resistant.} Bxe3 31. Bxe3) 30... exd5 $19 {[%emt 0:00:44]} 31. Bb2 {[%emt 0:01:29]} Rc2 {[%emt 0:00:44]} 32. Rb1 {[%emt 0:03:16]} (32. Bc3 $142 Rxe2 33. Qxe2 bxc3 34. Qc2) 32... Rd2 {[%emt 0:05:17]} 33. Qf3 {[%emt 0:01:29]} Nf8 {[%emt 0:01:58]} 34. Bc1 {[%emt 0:00:32]} Rd1+ {[%emt 0:00:07]} 35. Kg2 {[%emt 0:00:08] Bf4 is the strong threat.} Bxc1 {[%emt 0:00:38]} 36. Nf4 $2 {[%emt 0:00:34]} (36. Qxd5 Qc2 37. Rxc1 Qxe2 38. Rxd1 Qxd1 39. h4) 36... Rxd4 {[%emt 0:01:31][%cal Rc1f4] Black is clearly winning.} 37. Ne2 {[%emt 0:00:45]} Rd1 {[%emt 0:00:33] And now ...d4 would win.} 38. Nf4 {[%emt 0:00:33]} (38. Rxc1 $142 Rxc1 39. Nxc1 Qxc1 40. Qxd5) 38... Qc2 {[%emt 0:00:17][%csl LRa2,LRb1]} 39. Nxd5 {[%emt 0:00:35]} Rxd5 {[%emt 0:00:09] Weighted Error Value: White=0.58/Black=0.23 (precise)} 0-1

[Event "SVK ECo-C Extraliga 2021-22"]
[Site "Slovakia"]
[Date "2022.05.08"]
[Round "7.7"]
[White "Sevcik, Matej"]
[Black "Faber, Peter"]
[Result "1-0"]
[ECO "A62"]
[WhiteElo "1820"]
[BlackElo "1876"]
[Annotator "NA COMBH"]
[PlyCount "57"]
[EventDate "2021.10.21"]
[EventType "team-tourn"]
[EventCountry "SVK"]
[SourceTitle "playchess.com"]
[Source "ChessBase"]
[SourceQuality "1"]
[TimeControl "40/5400+30:1800+30"]

1. d4 {[%emt 0:30:03]} Nf6 {[%emt 0:30:20]} 2. c4 {[%emt 0:00:00]} c5 {[%emt 0:00:08]} 3. d5 {[%emt 0:00:10]} e6 {[%emt 0:00:06]} 4. Nc3 {[%emt 0:00:03]} exd5 {[%emt 0:00:10]} 5. cxd5 {[%emt 0:00:05]} d6 {[%emt 0:00:17]} 6. Nf3 {[%emt 0:00:42]} g6 {[%emt 0:00:49]} 7. g3 {[%emt 0:00:04]} Bg7 {[%emt 0:00:15]} 8. Bg2 {[%emt 0:00:04]} O-O {[%emt 0:00:24]} 9. O-O {[%emt 0:00:04]} Re8 {[%emt 0:00:38]} 10. Bf4 {[%emt 0:00:05]} a6 {[%emt 0:02:37]} 11. a4 {[%emt 0:00:37]} h6 {[%emt 0:01:23]} 12. Re1 {[%emt 0:01:40]} g5 {[%emt 0:03:08]} 13. Bc1 {[%emt 0:02:59]} Bf5 {[%emt 0:01:36]} 14. Nd2 {[%emt 0:01:19]} Nbd7 {[%emt 0:00:33]} 15. Nc4 {[%emt 0:03:31]} Qe7 {[%emt 0:02:33]} 16. e4 {[%emt 0:03:01]} Nxe4 {[%emt 0:07:55]} 17. Nxe4 {[%emt 0:05:10]} Bxe4 {[%emt 0:00:34]} 18. Rxe4 {[%emt 0:00:38]} Qf6 {[%emt 0:03:59]} 19. a5 {[%emt 0:04:37]} Qg6 {[%emt 0:01:00]} 20. Qc2 {[%emt 0:01:13]} f5 {[%emt 0:01:10]} 21. Rxe8+ {[%emt 0:00:27]} Rxe8 {[%emt 0:00:11]} 22. Be3 {[%emt 0:02:41]} Qf6 {[%emt 0:04:03]} 23. Re1 {[%emt 0:04:41]} f4 {[%emt 0:00:59]} 24. Bd2 {[%emt 0:00:07]} Rf8 {[%emt 0:02:15]} 25. Bc3 {[%emt 0:01:32]} Ne5 {[%emt 0:00:54]} 26. Nxe5 {[%emt 0:01:06]} dxe5 {[%emt 0:00:08]} 27. Bxe5 {[%emt 0:00:22]} Qe7 {[%emt 0:02:00]} 28. Bc3 {[%emt 0:00:21]} Qd6 {[%emt 0:00:42]} 29. Re6 {[%emt 0:00:48]} 1-0